bitfinex/quotes_SOLUSD_20240902
["timestamp","ask_amount","ask_price","bid_price","bid_amount"]
[1725254265199,24.52538424,128.3,128.26,24.0665]
[1725254265492,24.52538424,128.3,128.26,16.2701]
[1725254265676,20.0,128.29,128.26,16.2701]
[1725254265877,20.0,128.29,128.26,24.0667]
[1725254267179,24.52538424,128.3,128.26,24.0667]
[1725254267379,20.0,128.29,128.26,24.0667]
[1725254268803,20.0,128.29,128.27,0.25098]
[1725254269398,20.0,128.29,128.27,8.04698]
[1725254272104,24.52538424,128.32,128.28,9.35412556]
[1725254272293,20.0,128.31,128.29,0.25098]
[1725254273791,7.7899,128.38,128.33,7.7923]
[1725254273982,13.9888,128.39,128.34,1.55822111]
[1725254273983,7.7913,128.39,128.34,1.55822111]
[1725254274184,24.52538424,128.37,128.32,0.12549]
[1725254274426,24.52538424,128.37,128.32,0.25098]
[1725254275308,24.52538424,128.37,128.33,19.4799]
[1725254275613,20.0,128.36,128.34,0.25098]
[1725254278926,24.52538424,128.35,128.31,30.1997]
[1725254279130,20.0,128.34,128.31,30.1997]
[1725254280218,20.0,128.34,128.32,0.25098]
[1725254280530,20.0,128.34,128.32,0.12549]
[1725254281337,20.0,128.34,128.32,7.91839]
[1725254282005,20.0,128.34,128.33,0.12549]
[1725254283919,44.52538424,128.34,128.33,0.12549]
[1725254284128,44.52538424,128.34,128.32,0.12549]
[1725254284129,52.31768424,128.34,128.32,0.12549]
[1725254284406,44.52538424,128.34,128.32,0.12549]
[1725254287522,44.52538424,128.34,128.32,7.91839]
[1725254290025,9.83041642,128.33,128.32,7.91839]
[1725254291725,9.83041642,128.33,128.32,8.04388]
[1725254295428,9.83041642,128.33,128.31,27.2766]
[1725254295637,9.83041642,128.33,128.31,19.4832]
[1725254295818,20.0,128.32,128.31,19.4832]
[1725254297244,20.0,128.32,128.29,7.7947]
[1725254297546,9.83041642,128.31,128.29,7.7947]
[1725254300453,6.2473,128.4,128.36,7.79]
[1725254300748,9.83041642,128.37,128.34,19.4783]
[1725254300939,7.7921,128.34,128.28,16.6141]
[1725254301239,9.83041642,128.31,128.28,24.4089]
[1725254301440,9.83041642,128.31,128.29,0.12549]
[1725254302047,24.58100746,128.33,128.29,7.92019]
[1725254302229,44.58100746,128.33,128.29,7.92019]
[1725254302434,44.58100746,128.33,128.3,0.12549]
[1725254303323,44.58100746,128.33,128.29,7.92019]
[1725254303822,44.58100746,128.33,128.3,0.12549]
[1725254306838,44.58100746,128.33,128.3,1.68402676]
[1725254307443,44.58100746,128.33,128.3,0.12549]
[1725254308941,44.58100746,128.33,128.29,7.92019]
[1725254309337,20.0,128.33,128.3,1.55865847]
[1725254309651,20.0,128.33,128.3,1.68414847]
[1725254310151,20.0,128.33,128.3,0.12549]
[1725254310324,20.0,128.34,128.31,7.7936]
[1725254310529,29.18206788,128.37,128.33,7.7924]
[1725254311128,36.97216788,128.37,128.33,7.7924]
[1725254312152,29.18206788,128.37,128.33,7.7924]
[1725254312342,24.58100746,128.37,128.34,0.25098]
[1725254312542,24.58100746,128.37,128.35,7.7906]
[1725254312740,24.58100746,128.37,128.34,8.04268]
[1725254312942,20.0,128.36,128.34,8.04268]
[1725254313449,7.7913,128.42,128.35,19.4771]
[1725254313629,24.58100746,128.41,128.36,0.25098]
[1725254313829,32.36850746,128.41,128.37,7.7898]
[1725254314241,24.58100746,128.41,128.37,7.7898]
[1725254314443,24.58100746,128.41,128.38,27.2615]
[1725254315145,24.58100746,128.41,128.38,19.4723]
[1725254315549,31.23530746,128.46,128.38,19.4723]
[1725254315550,12.7913,128.48,128.43,7.7863]
[1725254315745,24.58100746,128.44,128.4,19.4689]
[1725254316253,24.58100746,128.44,128.41,7.7872]
[1725254316438,24.58100746,128.44,128.4,27.257]
[1725254317558,20.0,128.43,128.4,27.257]
[1725254319642,20.0,128.43,128.4,19.4689]
[1725254320367,20.0,128.43,128.4,28.81440066]
[1725254320666,20.0,128.43,128.4,27.257]
[1725254321468,20.0,128.43,128.41,8.03828]
[1725254321762,20.0,128.45,128.41,8.03828]
[1725254322633,4.60106042,128.47,128.42,1.55709653]
[1725254322855,4.60106042,128.47,128.44,7.7854]
[1725254323047,4.60106042,128.47,128.44,9.34231437]
[1725254323257,4.60106042,128.47,128.44,1.55691437]
[1725254323453,4.60106042,128.47,128.43,19.4652]
[1725254323648,24.58100746,128.46,128.43,19.4652]
[1725254323948,20.0,128.45,128.43,19.4652]
[1725254324668,20.0,128.45,128.34,6.439]
[1725254324669,24.58100746,128.44,128.34,6.439]
[1725254324968,24.58100746,128.39,128.36,7.7903]
[1725254325164,20.0,128.38,128.36,7.7903]
[1725254325864,20.0,128.4,128.36,7.7903]
[1725254326065,24.58100746,128.39,128.34,14.2302]
[1725254326246,20.0,128.38,128.35,0.12549]
[1725254327371,20.0,128.38,128.35,0.25098]
[1725254328279,20.0,128.38,128.36,7.7904]
[1725254328567,20.0,128.38,128.37,0.25098]
[1725254329788,20.0,128.38,128.37,8.04088]
[1725254330066,20.0,128.38,128.36,45.0]
[1725254330273,20.0,128.39,128.37,45.0]
[1725254330463,20.0,128.39,128.38,0.12549]
[1725254330769,20.0,128.39,128.37,8.04078]
[1725254330973,20.0,128.39,128.38,45.0]
[1725254331171,20.0,128.39,128.38,72.51368]
[1725254332368,20.0,128.39,128.38,64.72438]
[1725254332756,24.58100746,128.43,128.38,72.51308]
[1725254332963,24.58100746,128.43,128.39,0.25098]
[1725254333158,24.58100746,128.43,128.39,15.32128]
[1725254333362,24.58100746,128.43,128.39,23.10988]
[1725254333956,24.58100746,128.43,128.4,45.0]
[1725254334157,36.9676537,128.46,128.33,6.4936]
[1725254334158,24.58100746,128.41,128.33,6.4936]
[1725254334383,24.58100746,128.39,128.33,6.4936]
[1725254334551,20.0,128.38,128.35,7.7906]
[1725254335092,32.37100746,128.37,128.33,6.4936]
[1725254335283,20.0,128.36,128.33,6.4936]
[1725254335577,20.0,128.36,128.33,14.2857]
[1725254335774,20.0,128.36,128.35,7.7911]
[1725254336465,20.0,128.36,128.35,8.04208]
[1725254337270,20.0,128.36,128.35,53.04208]
[1725254337476,24.58100746,128.41,128.36,7.7904]
[1725254337788,20.0,128.4,128.37,8.04038]
[1725254337973,24.58100746,128.41,128.38,52.7891]
[1725254338159,24.58100746,128.41,128.38,7.7891]
[1725254338367,24.58100746,128.41,128.39,45.25098]
[1725254339080,36.9627537,128.43,128.39,45.25098]
[1725254339261,29.1763537,128.43,128.39,45.25098]
[1725254339861,29.1763537,128.43,128.39,64.72278]
[1725254340574,20.0,128.42,128.39,72.51138]
[1725254340760,20.0,128.42,128.39,64.4718]
[1725254340761,24.58100746,128.41,128.39,64.4718]
[1725254340965,20.0,128.4,128.39,64.4718]
[1725254341165,20.0,128.4,128.39,45.0]
[1725254341367,20.0,128.4,128.38,45.0]
[1725254341565,27.7881,128.4,128.38,45.0]
[1725254341760,20.0,128.4,128.38,45.0]
[1725254341959,20.0,128.4,128.37,15.0703]
[1725254342577,20.0,128.4,128.36,19.476]
[1725254343360,20.0,128.4,128.36,27.2665]
[1725254343974,20.0,128.4,128.37,45.0]
[1725254345887,27.7882,128.4,128.37,45.0]
[1725254346092,27.7882,128.4,128.36,45.0]
[1725254346400,27.7882,128.4,128.36,52.7905]
[1725254346577,20.0,128.4,128.36,52.7905]
[1725254346764,20.0,128.4,128.36,64.4757]
[1725254346970,20.0,128.4,128.37,0.25098]
[1725254348281,20.0,128.4,128.37,8.04048]
[1725254348466,20.0,128.4,128.38,45.0]
[1725254348872,20.0,128.4,128.39,7.7887]
[1725254349072,20.0,128.4,128.39,53.03968]
[1725254349883,20.0,128.4,128.39,52.91419]
[1725254350274,20.0,128.4,128.39,52.7887]
[1725254350475,20.0,128.4,128.39,52.91419]
[1725254350790,20.0,128.4,128.39,45.0]
[1725254351368,20.0,128.4,128.39,45.12549]
[1725254352084,20.0,128.4,128.39,52.91419]
[1725254352477,20.0,128.4,128.39,53.03968]
[1725254355073,24.58100746,128.52,128.39,53.03968]
[1725254355074,6.3268,128.48,128.41,19.4685]
[1725254355270,19.4538,128.51,128.39,61.52728]
[1725254355271,4.59534624,128.51,128.47,7.7838]
[1725254355472,24.58100746,128.5,128.46,19.4605]
[1725254355672,24.58100746,128.5,128.47,45.0]
[1725254356380,34.58259764,128.5,128.47,45.0]
[1725254356774,24.58100746,128.48,128.43,27.2515]
[1725254357196,29.1763537,128.48,128.43,27.2515]
[1725254357396,29.1763537,128.48,128.39,16.40179]
[1725254357397,7.7844,128.47,128.41,7.7869]
[1725254357601,24.58100746,128.45,128.4,19.47]
[1725254357909,20.0,128.44,128.42,7.7868]
[1725254358115,20.0,128.44,128.43,7.7863]
[1725254358397,20.0,128.46,128.42,7.7868]
[1725254360778,32.36620746,128.45,128.4,27.2576]
[1725254361096,20.0,128.44,128.4,27.2576]
[1725254363387,20.0,128.44,128.41,7.91299]
[1725254363590,20.0,128.44,128.41,8.03848]
[1725254364300,20.0,128.44,128.41,0.25098]
[1725254364489,20.0,128.44,128.4,27.2581]
[1725254365702,20.0,128.44,128.41,1.55731169]
[1725254366781,20.0,128.44,128.4,27.2581]
[1725254367300,20.0,128.44,128.4,28.8154122]
[1725254367684,20.0,128.44,128.4,27.2581]
[1725254367873,20.0,128.44,128.41,0.12549]
[1725254368716,27.7859,128.44,128.4,27.2581]
[1725254371622,20.0,128.44,128.4,28.81547475]
[1725254371815,20.0,128.44,128.4,27.2581]
[1725254374921,20.0,128.44,128.4,28.81545219]
[1725254376096,20.0,128.44,128.4,27.2581]
[1725254377626,20.0,128.44,128.42,7.7865]
[1725254377797,24.58100746,128.44,128.41,7.7874]
[1725254378000,20.0,128.43,128.41,7.7874]
[1725254378419,20.0,128.43,128.4,19.47]
[1725254378631,20.0,128.43,128.4,27.258]
[1725254381625,27.7865,128.43,128.39,22.58549]
[1725254382128,9.81758262,128.42,128.39,22.58549]
[1725254382421,20.0,128.41,128.39,30.37419]
[1725254383636,20.0,128.41,128.39,24.065]
[1725254386520,20.0,128.41,128.39,16.2763]
[1725254388405,29.81758262,128.42,128.39,16.2763]
[1725254389518,29.81758262,128.42,128.4,0.25098]
[1725254390425,29.81758262,128.42,128.4,8.03908]
[1725254390831,20.0,128.42,128.4,8.03908]
[1725254393534,20.0,128.42,128.4,0.25098]
[1725254394326,20.0,128.42,128.4,8.03888]
[1725254395625,20.0,128.42,128.4,7.7879]
[1725254396407,20.0,128.42,128.4,7.788]
[1725254396616,29.81758262,128.43,128.4,7.788]
[1725254400150,20.0,128.43,128.4,7.788]
[1725254400446,29.81758262,128.43,128.4,7.788]
[1725254402058,29.81758262,128.43,128.39,43.66169]
[1725254402231,9.81758262,128.41,128.39,43.5362]
[1725254402432,9.81758262,128.41,128.39,27.2599]
[1725254404053,20.0,128.4,128.36,41.1148]
[1725254404233,9.81758262,128.39,128.36,48.9049]
[1725254405149,29.81758262,128.4,128.36,48.9049]
[1725254405363,37.60588262,128.4,128.36,48.9049]
[1725254407743,9.81758262,128.38,128.33,43.7603]
[1725254408053,9.81758262,128.36,128.33,43.7603]
[1725254408260,9.81758262,128.34,128.33,35.9684]
[1725254408964,29.81758262,128.34,128.33,35.9684]
[1725254409957,29.81758262,128.34,128.33,16.4884]
[1725254410155,20.0,128.34,128.33,16.4884]
[1725254410336,20.0,128.34,128.33,24.2808]
[1725254410853,20.0,128.34,128.33,24.53178]
[1725254413164,20.0,128.34,128.33,16.73938]
[1725254413339,20.0,128.34,128.33,16.61389]
[1725254415650,20.0,128.34,128.33,16.4884]
[1725254417667,29.81758262,128.34,128.32,27.2743]
[1725254419357,20.0,128.34,128.32,27.2743]
[1725254419538,20.0,128.35,128.33,0.12549]
[1725254420262,20.0,128.35,128.33,9.47604294]
[1725254420764,20.0,128.35,128.33,7.91779]
[1725254421462,20.0,128.35,128.34,7.91729]
[1725254421774,4.60106042,128.4,128.34,16.78088]
[1725254421976,14.41864304,128.4,128.37,7.7894]
[1725254422165,4.60106042,128.4,128.39,7.7887]
[1725254422341,4.60106042,128.4,128.38,7.7892]
[1725254423537,24.60106042,128.4,128.38,7.7892]
[1725254425967,9.81758262,128.42,128.39,7.7887]
[1725254426643,19.8191728,128.42,128.39,7.7887]
[1725254427569,20.0,128.41,128.39,7.7887]
[1725254429185,20.0,128.41,128.38,27.2615]
[1725254430977,20.0,128.41,128.39,0.25098]
[1725254432378,20.0,128.41,128.39,8.03958]
[1725254435659,20.0,128.41,128.38,27.2615]
[1725254440959,20.0,128.41,128.39,7.91419]
[1725254441164,20.0,128.41,128.4,7.7881]
[1725254441357,20.0,128.41,128.39,7.91409]
[1725254443566,20.0,128.41,128.39,0.12549]
[1725254446381,20.0,128.41,128.39,7.91419]
[1725254448688,20.0,128.41,128.4,7.7881]
[1725254448897,20.0,128.41,128.39,7.91409]
[1725254450076,20.0,128.42,128.39,7.91409]
[1725254451506,10.00159018,128.45,128.4,21.15239374]
[1725254451668,19.8191728,128.45,128.41,0.12549]
[1725254452003,19.8191728,128.45,128.41,7.91299]
[1725254452291,9.81758262,128.43,128.41,0.12549]
[1725254452481,9.81758262,128.43,128.39,15.3066]
[1725254452672,14.41292886,128.43,128.39,15.3066]
[1725254452870,20.0,128.42,128.39,15.3066]
[1725254453367,20.0,128.42,128.39,23.0953]
[1725254454378,20.0,128.42,128.4,0.12549]
[1725254454887,20.0,128.42,128.4,7.91349]
[1725254455072,4.59534624,128.43,128.4,8.03898]
[1725254455585,4.59534624,128.43,128.4,7.91349]
[1725254457096,14.41292886,128.43,128.39,23.22069]
[1725254457387,20.0,128.42,128.39,23.22069]
[1725254457969,20.0,128.42,128.4,0.12549]
[1725254460413,9.81758262,128.41,128.38,27.2616]
[1725254460603,20.0,128.4,128.37,7.7899]
[1725254460992,20.0,128.4,128.36,35.4591]
[1725254461304,20.0,128.41,128.38,7.7889]
[1725254461507,20.0,128.41,128.36,35.4591]
[1725254461697,20.0,128.42,128.37,0.25098]
[1725254462287,20.0,128.42,128.39,7.7886]
[1725254463107,20.0,128.42,128.4,7.7881]
[1725254463416,14.41292886,128.43,128.39,27.2605]
[1725254463714,20.0,128.42,128.39,27.2605]
[1725254466114,17.60318262,128.45,128.4,1.80835896]
[1725254466301,17.60318262,128.45,128.4,0.25098]
[1725254466501,9.81758262,128.43,128.39,19.4718]
[1725254466912,14.41292886,128.43,128.39,27.2601]
[1725254467917,7.7869,128.42,128.38,0.12549]
[1725254468099,20.0,128.41,128.38,0.25098]
[1725254468299,20.0,128.41,128.37,0.25098]
[1725254468616,20.0,128.41,128.38,7.7891]
[1725254468822,24.59534624,128.42,128.38,7.7891]
[1725254469020,24.59534624,128.42,128.39,7.7885]
[1725254473924,20.0,128.42,128.39,7.7885]
[1725254475521,20.0,128.42,128.41,7.7875]
[1725254475906,20.0,128.42,128.41,7.91299]
[1725254476401,20.0,128.42,128.4,27.2577]
[1725254476596,20.0,128.43,128.4,27.2577]
[1725254477016,24.59534624,128.43,128.4,27.2577]
[1725254477219,24.59534624,128.43,128.4,19.4697]
[1725254479528,32.38184624,128.43,128.39,7.7886]
[1725254480131,24.59534624,128.43,128.39,7.7886]
[1725254481032,24.59534624,128.43,128.4,7.91339]
[1725254481227,24.59534624,128.43,128.4,7.7879]
[1725254481622,24.59534624,128.43,128.41,7.91239]
[1725254482011,4.59534624,128.43,128.41,7.91239]
[1725254482528,24.59534624,128.43,128.41,7.91239]
[1725254483633,24.59534624,128.43,128.41,0.12549]
[1725254483826,4.59534624,128.43,128.41,0.12549]
[1725254484039,20.0,128.42,128.41,0.12549]
[1725254485218,20.0,128.42,128.41,0.25098]
[1725254485743,4.59534624,128.46,128.41,22.10738]
[1725254485913,17.60038262,128.49,128.44,7.7852]
[1725254486238,17.60058262,128.49,128.45,0.12549]
[1725254486532,9.81758262,128.49,128.45,7.90999]
[1725254486832,9.81758262,128.49,128.46,0.12549]
[1725254487040,9.81758262,128.49,128.46,0.25098]
[1725254487825,9.81758262,128.49,128.45,7.7845]
[1725254488632,20.0,128.48,128.45,7.7845]
[1725254490934,29.81758262,128.49,128.45,7.7845]
[1725254491129,29.81758262,128.49,128.46,8.03538]
[1725254491329,29.81758262,128.49,128.46,7.90989]
[1725254491523,29.81758262,128.49,128.46,0.12549]
[1725254491729,9.81758262,128.47,128.44,7.91109]
[1725254492040,20.0,128.46,128.44,7.91109]
[1725254494158,20.0,128.46,128.44,0.12549]
[1725254494324,20.0,128.46,128.44,0.25098]
[1725254495249,20.0,128.46,128.38,38.9458]
[1725254495250,17.60278262,128.45,128.4,27.2575]
[1725254495444,20.0,128.44,128.4,27.2575]
[1725254495822,9.81758262,128.43,128.4,19.4695]
[1725254496052,20.0,128.42,128.4,19.4695]
[1725254496355,29.81758262,128.44,128.4,27.2575]
[1725254496850,20.0,128.44,128.42,19.4661]
[1725254497155,9.81758262,128.46,128.42,27.2524]
[1725254497522,20.0,128.45,128.43,0.25098]
[1725254500634,20.0,128.45,128.39,19.4712]
[1725254500835,20.0,128.45,128.4,8.03868]
[1725254501051,27.7852,128.45,128.4,8.03868]
[1725254501235,27.7852,128.45,128.41,7.7875]
[1725254501841,20.0,128.45,128.42,7.7864]
[1725254502143,20.0,128.45,128.41,27.2549]
[1725254502552,20.0,128.45,128.42,0.25098]
[1725254505252,20.0,128.45,128.42,8.03778]
[1725254510338,27.7851,128.45,128.42,0.25098]
[1725254510544,27.7851,128.45,128.42,0.12549]
[1725254511071,20.0,128.45,128.42,0.12549]
[1725254515969,20.0,128.45,128.42,27.37889]
[1725254516165,20.0,128.45,128.43,7.786]
[1725254516351,20.0,128.45,128.43,9.34319999]
[1725254516680,29.81758262,128.47,128.43,9.34319999]
[1725254517374,14.2761,128.51,128.45,7.7846]
[1725254517545,9.81758262,128.49,128.46,0.25098]
[1725254518489,9.81758262,128.49,128.45,7.7846]
[1725254518688,20.0,128.48,128.45,7.7846]
[1725254519770,9.81758262,128.47,128.45,7.7846]
[1725254520090,9.81758262,128.47,128.44,19.4633]
[1725254520267,9.81758262,128.47,128.44,27.2485]
[1725254522999,9.81758262,128.47,128.45,8.03608]
[1725254523396,27.7849,128.46,128.42,16.5718]
[1725254523699,9.81758262,128.45,128.42,16.5718]
[1725254524004,20.0,128.44,128.42,16.5718]
[1725254524671,20.0,128.44,128.4,27.258]
[1725254524881,9.81758262,128.43,128.4,19.4703]
[1725254526701,9.81758262,128.43,128.4,27.2583]
[1725254526879,20.0,128.44,128.41,0.25098]
[1725254527591,37.60208262,128.46,128.41,0.25098]
[1725254527791,37.60208262,128.46,128.41,8.03838]
[1725254529290,17.60278262,128.45,128.41,8.03838]
[1725254529590,20.0,128.44,128.41,0.25098]
[1725254529793,20.0,128.44,128.41,8.03818]
[1725254530196,20.0,128.45,128.41,8.03838]
[1725254530500,20.0,128.45,128.42,1.55713541]
[1725254530697,29.81758262,128.46,128.43,0.25098]
[1725254531280,20.0,128.46,128.45,7.7851]
[1725254531605,20.0,128.46,128.43,8.03708]
[1725254531606,29.81758262,128.46,128.43,8.03708]
[1725254536889,20.0,128.46,128.43,8.03708]
[1725254538182,20.0,128.46,128.43,0.25098]
[1725254539076,20.0,128.46,128.42,7.7867]
[1725254539305,20.0,128.46,128.43,7.7859]
[1725254542408,20.0,128.45,128.44,27.2498]
[1725254542621,20.0,128.45,128.44,19.4642]
[1725254543985,20.0,128.45,128.42,7.91229]
[1725254544301,20.0,128.45,128.42,7.7868]
[1725254545014,9.81758262,128.44,128.39,22.9114]
[1725254545185,9.81758262,128.44,128.4,7.7877]
[1725254545186,20.0,128.43,128.4,7.7877]
[1725254547134,20.0,128.43,128.42,7.7869]
[1725254548191,20.0,128.43,128.41,7.7874]
[1725254553907,20.0,128.43,128.42,8.03788]
[1725254559395,20.0,128.43,128.36,22.1349]
[1725254559701,9.81758262,128.41,128.36,22.1349]
[1725254559901,8.89089697,128.44,128.36,22.1349]
[1725254559902,9.81758262,128.43,128.36,22.1349]
[1725254560202,20.0,128.42,128.39,7.7882]
[1725254561021,20.0,128.42,128.4,19.4689]
[1725254561194,20.0,128.43,128.4,19.4689]
[1725254561996,20.0,128.43,128.4,27.257]
[1725254568106,20.0,128.43,128.4,19.4689]
[1725254568325,9.81758262,128.42,128.39,7.7886]
[1725254568494,20.0,128.41,128.39,7.7886]
[1725254569597,20.0,128.41,128.38,7.91469]
[1725254569793,20.0,128.41,128.36,22.1349]
[1725254570015,27.7875,128.41,128.37,8.04088]
[1725254570217,20.0,128.41,128.37,8.04088]
[1725254570820,20.0,128.41,128.38,7.7892]
[1725254575637,29.81758262,128.42,128.38,7.7892]
[1725254576321,37.60448262,128.42,128.38,7.7892]
[1725254577133,9.81758262,128.4,128.36,49.401]
[1725254577310,27.787,128.42,128.37,7.7899]
[1725254577519,9.81758262,128.41,128.37,7.7899]
[1725254577807,20.0,128.4,128.38,7.7891]
[1725254578652,20.0,128.42,128.39,7.7887]
[1725254578944,20.0,128.42,128.4,52.7881]
[1725254579155,5.70603946,128.48,128.41,7.787]
[1725254579328,9.81758262,128.45,128.41,7.787]
[1725254579730,9.81758262,128.45,128.42,45.0]
[1725254580227,17.60278262,128.45,128.42,45.0]
[1725254580439,9.81758262,128.43,128.41,45.0]
[1725254580749,20.0,128.44,128.41,45.0]
[1725254580925,20.0,128.45,128.41,45.0]
[1725254581248,9.81758262,128.44,128.41,45.0]
[1725254581452,20.0,128.43,128.41,45.0]
[1725254581747,20.0,128.43,128.42,7.7869]
[1725254581982,20.0,128.43,128.42,45.0]
[1725254582322,20.0,128.43,128.41,45.0]
[1725254583063,9.81758262,128.42,128.4,19.4696]
[1725254583236,20.0,128.41,128.4,19.4696]
[1725254583544,20.0,128.41,128.4,64.4696]
[1725254585129,20.0,128.41,128.4,72.2577]
[1725254585343,9.81758262,128.43,128.4,72.2577]
[1725254585667,9.81758262,128.43,128.41,52.7874]
[1725254585950,20.0,128.42,128.41,52.7874]
[1725254586860,20.0,128.42,128.41,45.0]
[1725254588242,20.0,128.42,128.41,52.7875]
[1725254588443,20.0,128.42,128.41,45.0]
[1725254595737,37.60458262,128.42,128.37,35.7581]
[1725254595972,36.54958262,128.42,128.37,43.5478]
[1725254596266,28.76258262,128.42,128.38,7.7891]
[1725254597292,28.76258262,128.42,128.39,45.0]
[1725254597980,18.945,128.42,128.39,45.0]
[1725254598167,28.76258262,128.42,128.39,45.0]
[1725254598371,18.945,128.42,128.39,52.7887]
[1725254598577,20.0,128.43,128.39,52.7887]
[1725254598869,20.0,128.43,128.4,28.94121899]
[1725254599169,20.0,128.43,128.41,45.0]
[1725254600075,20.0,128.43,128.41,46.55737797]
[1725254600364,20.0,128.43,128.41,54.34487797]
[1725254601176,20.0,128.43,128.41,46.55737797]
[1725254602473,20.0,128.43,128.41,45.0]
[1725254603261,20.0,128.43,128.41,52.7875]
[1725254603663,9.81758262,128.44,128.41,52.7875]
[1725254603856,20.0,128.43,128.41,52.7875]
[1725254605775,29.81758262,128.45,128.41,52.7875]
[1725254606978,20.0,128.45,128.41,52.7875]
[1725254607270,29.81758262,128.45,128.41,52.7875]
[1725254608783,20.0,128.45,128.41,52.7875]
[1725254608987,9.81758262,128.44,128.41,52.7875]
[1725254609280,20.0,128.43,128.41,52.7875]
[1725254609474,20.0,128.45,128.42,22.78635074]
[1725254609672,20.0,128.45,128.43,46.55707782]
[1725254609871,20.0,128.45,128.43,45.0]
[1725254611366,29.81758262,128.47,128.44,7.7857]
[1725254611571,29.81758262,128.47,128.45,45.0]
[1725254612302,29.81758262,128.47,128.44,45.0]
[1725254612970,20.0,128.47,128.44,45.0]
[1725254613277,29.81758262,128.47,128.44,45.0]
[1725254615691,20.0,128.47,128.44,52.7855]
[1725254615870,20.0,128.47,128.44,45.0]
[1725254616187,20.0,128.47,128.44,52.7856]
[1725254619189,9.81758262,128.46,128.44,45.0]
[1725254619485,9.81758262,128.46,128.43,45.0]
[1725254619869,20.0,128.45,128.43,45.0]
[1725254629285,29.81758262,128.44,128.4,15.6561]
[1725254630378,29.81758262,128.44,128.4,23.444]
[1725254630579,29.81758262,128.44,128.41,45.0]
[1725254630779,9.81758262,128.44,128.41,45.0]
[1725254632186,7.7846,128.46,128.41,52.7873]
[1725254632398,7.7846,128.46,128.42,0.25098]
[1725254632399,20.0,128.45,128.42,0.25098]
[1725254632705,20.0,128.45,128.42,1.80808867]
[1725254635394,20.0,128.45,128.43,7.7863]
[1725254635597,9.81758262,128.47,128.44,45.25098]
[1725254635801,20.0,128.46,128.44,45.0]
[1725254636082,20.0,128.46,128.43,45.0]
[1725254637499,20.0,128.46,128.44,0.25098]
[1725254638506,20.0,128.47,128.44,0.25098]
[1725254638707,27.784,128.47,128.44,0.25098]
[1725254639602,9.81758262,128.46,128.43,45.0]
[1725254639776,20.0,128.45,128.43,45.0]
[1725254641199,17.60238262,128.46,128.42,52.7868]
[1725254641406,20.0,128.45,128.42,52.7868]
[1725254641994,20.0,128.45,128.43,0.25098]
[1725254643984,20.0,128.45,128.43,0.12549]
[1725254644207,20.0,128.46,128.43,1.80796041]
[1725254645710,20.0,128.46,128.43,9.59416041]
[1725254646022,17.59978262,128.5,128.45,7.7851]
[1725254646320,7.7827,128.49,128.46,45.25098]
[1725254647409,20.0,128.48,128.46,46.80762405]
[1725254647594,20.0,128.48,128.46,45.0]
[1725254647787,29.81758262,128.48,128.44,16.2464]
[1725254647992,29.81758262,128.48,128.43,33.3521]
[1725254649185,29.81758262,128.48,128.44,45.0]
[1725254649406,7.784,128.47,128.44,45.0]
[1725254649612,20.0,128.46,128.45,0.25098]
[1725254650410,7.7828,128.49,128.45,0.25098]
[1725254650586,20.0,128.48,128.45,0.25098]
[1725254650788,20.0,128.48,128.45,1.80766289]